fUSD/lending_fUSD_20241110
["ID","MTS","AMOUNT","RATE_DAILY","PERIOD"]
[341862371,1731260006302,-1000.0,0.00042466,120]
[341862372,1731260006335,-150.0,0.0004248,120]
[341862373,1731260006370,-547.45587117,0.0004248,115]
[341862374,1731260006402,-200000.0,0.000425,120]
[341862375,1731260006438,-9763.19919726,0.000425,120]
[341862376,1731260006471,-30000.0,0.000425,120]
[341862377,1731260006506,-8000.0,0.000425,120]
[341862378,1731260006538,-150.0,0.000425,120]
[341862379,1731260006570,-1000.0,0.000425,120]
[341862380,1731260006601,-20000.0,0.000425,120]
[341862381,1731260006634,-150.0,0.00042513,120]
[341862382,1731260006666,-1000.0,0.00042534,120]
[341862383,1731260006699,-150.0,0.00042546,120]
[341862384,1731260006733,-2263.8,0.00042553,117]
[341862385,1731260006766,-1000.0,0.00042603,120]
[341862386,1731260006800,-150.0,0.00042603,120]
[341862387,1731260006836,-1000.0,0.00042671,120]
[341862388,1731260006871,-200000.0,0.000427,120]
[341862389,1731260006904,-1000.0,0.0004274,120]
[341862390,1731260006938,-30000.0,0.0004275,120]
[341862391,1731260007257,-150.0,0.00042788,120]
[341862392,1731260007291,-1594.10838301,0.00042798,120]
[341862393,1731260007324,-200000.0,0.000428,120]
[341862394,1731260007358,-561.62244,0.000428,63]
[341862395,1731260007390,-40554.56924122,0.000428,60]
[341862396,1731260007422,-630.89629336,0.000428,120]
[341862397,1731260007454,-1000.0,0.00042808,120]
[341862398,1731260007486,-30000.0,0.0004285,120]
[341862399,1731260007519,-1000.0,0.00042877,120]
[341862400,1731260007550,-1360.54667618,0.000429,60]
[341862401,1731260007582,-2000.0,0.00042933,120]
[341862402,1731260007615,-1000.0,0.00042945,120]
[341862403,1731260007647,-15000.0,0.0004295,120]
[341862404,1731260007679,-150.0,0.00042961,120]
[341862405,1731260007711,-1110.99,0.00042965,120]
[341862406,1731260007742,-500.0,0.00042998,60]
[341862407,1731260007775,-1000.0,0.00042999,120]
[341862408,1731260007811,-50000.0,0.00043,43]
[341862409,1731260007847,-600.0,0.00043,120]
[341862410,1731260007884,-874.54905358,0.00043,120]
[341862411,1731260007920,-168.44699362,0.00043,120]
[341862412,1731260007954,-500.0,0.00043,120]
[341862413,1731260007986,-3000.0,0.00043,60]
[341862414,1731260008019,-164353.0471679,0.00043,120]
[341862415,1731260008053,-724.55827849,0.00043,120]
[341862416,1731260008085,-30000.0,0.00043,120]
[341862417,1731260008119,-11547.4230139,0.00043,120]
[341862418,1731260008152,-319.91784119,0.00043,120]
[341862419,1731260008186,-900.0,0.00043,44]
[341862420,1731260008220,-1507.19,0.00043,120]
[341862421,1731260008256,-2052.55,0.00043,120]
[341862422,1731260008290,-277.0,0.00043,60]
[341862423,1731260008325,-8000.0,0.00043,120]
[341862424,1731260008360,-172251.57174473,0.00043,120]
[341862425,1731260008395,-146649.99831162,0.00043,120]
[341862426,1731260013735,-1984.35,0.00033151,120]
[341862427,1731260013829,-150.0,0.00041999,120]
[341862428,1731260013865,-500.0,0.00042123,120]
[341862429,1731260013904,-538380.27322422,0.00043,120]
[341862430,1731260013939,-4617.67222563,0.00043,120]
[341862431,1731260013976,-4703.97155233,0.00043,120]
[341862432,1731260014012,-4017.45,0.00043,48]
[341862433,1731260014046,-150.0,0.00043,120]
[341862434,1731260014080,-1416.44075846,0.00043,120]
[341862435,1731260014114,-150.0,0.00043,120]
[341862436,1731260014148,-150.0,0.00043,120]
[341862437,1731260014185,-150.0,0.00043,120]
[341862438,1731260014219,-176.520871,0.00043,120]
[341862439,1731260014256,-187.12,0.00043014,120]
[341862440,1731260014291,-1000.0,0.00043014,120]
[341862441,1731260014329,-150.0,0.00043053,120]
[341862442,1731260014366,-1000.0,0.00043082,120]
[341862443,1731260014400,-150.0,0.00043142,120]
[341862444,1731260014434,-1000.0,0.00043151,120]
[341862445,1731260014469,-200000.0,0.000432,120]
[341862446,1731260014507,-1000.0,0.00043219,120]
[341862447,1731260014542,-1000.0,0.00043288,120]
[341862448,1731260014577,-1000.0,0.00043356,120]
[341862449,1731260014610,-150.0,0.000434,120]
[341862450,1731260014645,-14648.89434696,0.000434,120]
[341862451,1731260014678,-150.0,0.000434,120]
[341862452,1731260014713,-150.0,0.000434,120]
[341862453,1731260014748,-250000.0,0.000434,120]
[341862454,1731260014782,-1000.0,0.00043425,120]
[341862455,1731260014815,-5000.0,0.0004345,45]
[341862456,1731260014849,-1000.0,0.00043493,120]
[341862457,1731260014883,-49000.0,0.000435,90]
[341862458,1731260014918,-30000.0,0.000435,120]
[341862459,1731260014953,-8000.0,0.000435,120]
[341862460,1731260014992,-500.0,0.00043546,60]
[341862461,1731260015025,-1196.97076868,0.00043546,60]
[341862462,1731260015060,-1000.0,0.00043562,120]
[341862463,1731260015096,-150.0,0.000436,120]
[341862464,1731260015130,-150.0,0.000436,120]
[341862465,1731260015167,-1000.0,0.0004363,120]
[341862466,1731260015201,-151.0,0.00043699,120]
[341862467,1731260015236,-1000.0,0.00043699,120]
[341862468,1731260015270,-6342.93230394,0.000437,120]
[341862469,1731260015304,-150.0,0.000437,120]
[341862470,1731260015338,-16457.24118938,0.000437,120]
[341862471,1731260015371,-1000.0,0.00043767,120]
[341862472,1731260015404,-416.92353606,0.000438,120]
[341862473,1731260015437,-2613.07928742,0.000438,90]
[341862474,1731260015470,-9789.5690436,0.000438,120]
[341862475,1731260015505,-3263.65,0.00043835,120]
[341862476,1731260015539,-3263.65,0.00043835,120]
[341862477,1731260015572,-3263.65,0.00043835,120]
[341862478,1731260015604,-3263.65,0.00043835,120]
[341862479,1731260015637,-3263.65,0.00043835,120]
[341862480,1731260015669,-3263.65,0.00043835,120]
[341862481,1731260015701,-3263.65,0.00043835,120]
[341862482,1731260015736,-3263.65,0.00043835,120]
[341862483,1731260015769,-3263.65,0.00043835,120]
[341862484,1731260015802,-3263.65,0.00043835,120]
[341862485,1731260015838,-3263.65,0.00043835,120]
[341862486,1731260015874,-3263.65,0.00043835,120]
[341862487,1731260015911,-3263.65,0.00043835,120]
[341862488,1731260015948,-3263.65,0.00043835,120]
[341862489,1731260015985,-3263.65,0.00043835,120]
[341862490,1731260016020,-3263.65,0.00043835,120]
[341862491,1731260016053,-3263.65,0.00043835,120]
[341862492,1731260016088,-3263.65,0.00043835,120]
[341862493,1731260016123,-3263.65,0.00043835,120]
[341862494,1731260016157,-3263.65,0.00043835,120]
[341862495,1731260016190,-3263.65,0.00043835,120]
[341862496,1731260016223,-3263.65,0.00043835,120]
[341862497,1731260016257,-3263.65,0.00043835,120]
[341862498,1731260016292,-3263.67913892,0.00043835,120]
[341862499,1731260016330,-3000.0,0.00043835,120]
[341862500,1731260016366,-244.28913061,0.00043836,120]
[341862501,1731260016569,150.0,0.00042,42]
[341862502,1731260016662,500.0,0.00042127,120]
[341862503,1731260016698,500.0,0.0003632,60]
[341862504,1731260016729,259.15,0.00016,10]
[341862505,1731260016800,150.0,0.0004201,120]
[341862506,1731260016962,500.0,0.00042185,120]
[341862507,1731260017045,150.0,0.00042055,120]
[341862508,1731260017318,500.0,0.00042192,120]
[341862509,1731260017527,150.0,0.000421,120]
[341862510,1731260017712,500.0,0.00037416,60]
[341862511,1731260017765,150.0,0.00042123,120]
[341862512,1731260017872,150.0,0.00042127,120]
[341862513,1731260017970,150.0,0.00042185,120]
[341862514,1731260018060,500.0,0.000422,120]
[341862515,1731260018116,150.0,0.00042192,120]
[341862516,1731260018280,500.0,0.00042236,120]
[341862517,1731260018415,150.0,0.000422,120]
[341862518,1731260018614,500.0,0.0004225,120]
[341862519,1731260018672,150.0,0.00042236,120]
[341862520,1731260018753,500.0,0.0004226,120]
[341862521,1731260018808,150.0,0.0004225,120]
[341862522,1731260018847,500.0,0.00042,42]
[341862523,1731260018925,500.0,0.00042305,59]
[341862524,1731260018987,500.0,0.00042127,120]
[341862525,1731260019029,150.0,0.00042027,120]
[341862526,1731260019073,150.0,0.0004226,120]
[341862527,1731260019255,500.0,0.00042329,120]
[341862528,1731260019406,500.0,0.00042185,120]
[341862529,1731260019461,150.0,0.00042305,59]
[341862530,1731260019623,500.0,0.00042397,120]
[341862531,1731260019786,500.0,0.00042192,120]
[341862532,1731260019875,150.0,0.00042329,120]
[341862533,1731260019951,150.0,0.00042085,120]
[341862534,1731260019992,500.0,0.000422,120]
[341862535,1731260020029,150.0,0.00042397,120]
[341862536,1731260020083,500.0,0.000424,120]
[341862537,1731260020136,500.0,0.00042236,120]
[341862538,1731260020174,150.0,0.00042092,120]
[341862539,1731260020252,500.0,0.0004225,120]
[341862540,1731260021030,500.0,0.0004245,60]
[341862541,1731260021109,500.0,0.00042466,120]
[341862542,1731260021162,500.0,0.0004226,120]
[341862543,1731260021211,500.0,0.0004248,120]
[341862544,1731260021276,500.0,0.00042305,59]
[341862545,1731260021437,500.0,0.000425,120]
[341862546,1731260021775,500.0,0.00037416,60]
[341862547,1731260021871,500.0,0.00042513,120]
[341862548,1731260022300,500.0,0.00042534,120]
[341862549,1731260023341,500.0,0.00038512,60]
[341862550,1731260023416,500.0,0.00037416,60]
[341862551,1731260023841,500.0,0.00042546,120]
[341862552,1731260024276,500.0,0.00042553,117]
[341862553,1731260024839,500.0,0.00042603,120]
[341862554,1731260025000,500.0,0.00038512,60]
[341862555,1731260025056,500.0,0.00039608,60]
[341862556,1731260025139,500.0,0.00042671,120]
[341862557,1731260025553,500.0,0.000427,120]
[341862558,1731260026155,500.0,0.0004274,120]
[341862559,1731260026504,500.0,0.0004275,120]
[341862560,1731260026707,500.0,0.00039608,60]
[341862561,1731260026917,500.0,0.00042788,120]
[341862562,1731260026964,500.0,0.00040704,60]
[341862563,1731260027334,500.0,0.00042798,120]
[341862565,1731260139358,1636.47,0.00011053,2]
[341862567,1731260334366,158.59,0.00010098,2]
[341862570,1731260609843,-5000000.0,0.0003902,30]
[341862571,1731260613655,-5000000.0,0.0003902,30]
[341862572,1731260827111,-164.31,0.00012564,2]
[341862573,1731260827136,-167.71,0.00012567,2]
[341862574,1731260827158,-250.02,0.000126,2]
[341862575,1731260827180,-300.0,0.00012647,2]
[341862576,1731260827205,-2748.3572326,0.00012648,2]
[341862578,1731260884707,-2373079.97227064,0.00039022,30]
[341862579,1731260884745,-12176.47553024,0.00039022,30]
[341862580,1731260884784,-476.2504747,0.00039022,30]
[341862581,1731260884824,-2000.0,0.00039022,31]
[341862582,1731260884864,-2809.81665901,0.00039022,120]
[341862583,1731260884904,-16346.84149722,0.00039022,30]
[341862584,1731260884948,-2000.0,0.00039022,30]
[341862585,1731260884986,-242.81643886,0.00039022,30]
[341862586,1731260885025,-163.7956253,0.00039022,60]
[341862587,1731260885065,-4513.0,0.00039022,120]
[341862588,1731260885103,-1209.57205193,0.00039022,120]
[341862589,1731260885142,-1164.95168761,0.00039022,30]
[341862590,1731260885193,-156.4587684,0.00039022,30]
[341862591,1731260885231,-6503.93754782,0.00039022,120]
[341862592,1731260885271,-1001.565313,0.00039022,120]
[341862593,1731260885313,-410.84762568,0.00039022,120]
[341862594,1731260885350,-1021.55595554,0.00039022,120]
[341862595,1731260885389,-2621.87447724,0.00039022,120]
[341862596,1731260885425,-342.06685428,0.00039022,120]
[341862597,1731260885463,-10476.30580094,0.00039022,90]
[341862598,1731260885501,-1098.22985288,0.00039022,45]
[341862599,1731260885537,-82246.35804,0.00039022,30]
[341862600,1731260885573,-1001.66,0.00039022,30]
[341862601,1731260885609,-2000.0,0.00039022,90]
[341862602,1731260885647,-3000.0,0.00039022,120]
[341862603,1731260885685,-12530.5073211,0.00039022,30]
[341862604,1731260885724,-4116.03252825,0.00039022,120]
[341862605,1731260885764,-35407.86526773,0.00039022,30]
[341862606,1731260885802,-2498.43313852,0.00039022,36]
[341862607,1731260885839,-962.14117057,0.00039022,30]
[341862608,1731260885875,-196.0,0.00039022,30]
[341862609,1731260885914,-1784.11376085,0.00039022,30]
[341862610,1731260885950,-1000.0,0.00039022,30]
[341862611,1731260885987,-1000.0,0.00039022,30]
[341862612,1731260886026,-1000.0,0.00039022,30]
[341862613,1731260886065,-1000.0,0.00039022,30]
[341862614,1731260886104,-1000.0,0.00039022,30]
[341862615,1731260886147,-1000.0,0.00039022,30]
[341862616,1731260886187,-1004.96299878,0.00039022,30]
[341862617,1731260886226,-1245.70709574,0.00039022,90]
[341862618,1731260886539,-1000.0,0.00039022,30]
[341862619,1731260886579,-1000.0,0.00039022,30]
[341862620,1731260886617,-1000.0,0.00039022,30]
[341862621,1731260886656,-2993.26741634,0.00039022,120]
[341862622,1731260886693,-2740.55051153,0.00039022,120]
[341862623,1731260886733,-1000.0,0.00039022,30]
[341862624,1731260886772,-1000.0,0.00039022,30]
[341862625,1731260886813,-472.76724482,0.00039022,30]
[341862626,1731260886851,-388.9442045,0.00039022,30]
[341862627,1731260886890,-307.0845491,0.00039022,30]
[341862628,1731260886926,-1006.97311083,0.00039022,30]
[341862629,1731260886963,-3095.6250858,0.00039022,120]
[341862630,1731260886999,-155.32311095,0.00039022,120]
[341862631,1731260887037,-164.14905844,0.00039022,120]
[341862632,1731260887073,-319.72413758,0.00039022,120]
[341862633,1731260887110,-3106.79214837,0.00039022,60]
[341862634,1731260887153,-3092.43016718,0.00039022,120]
[341862635,1731260887192,-1108.37361271,0.00039022,120]
[341862636,1731260887233,-318.73754145,0.00039022,120]
[341862637,1731260887271,-2096.55541957,0.00039022,120]
[341862638,1731260887310,-604.11159636,0.00039022,120]
[341862639,1731260887360,-250.89069471,0.00039022,120]
[341862640,1731260887401,-333.22066135,0.00039022,120]
[341862641,1731260887457,-1084.82390092,0.00039022,30]
[341862642,1731260887494,-982.73631256,0.00039022,30]
[341862643,1731260887532,-155.96499252,0.00039022,90]
[341862644,1731260887579,-740.87711115,0.00039022,120]
[341862645,1731260887614,-722.04221546,0.00039022,120]
[341862646,1731260887649,-333.01775675,0.00039022,120]
[341862647,1731260887684,-591.74315831,0.00039022,120]
[341862648,1731260887718,-400.46689856,0.00039022,120]
[341862649,1731260887751,-156.4759655,0.00039022,120]
[341862650,1731260887787,-3073.03071346,0.00039022,120]
[341862651,1731260887822,-1007.70458344,0.00039022,30]
[341862652,1731260887856,-586.27785004,0.00039022,120]
[341862653,1731260887890,-348.94911609,0.00039022,60]
[341862654,1731260887925,-3000.0,0.00039022,120]
[341862655,1731260887961,-228.7271123,0.00039022,120]
[341862656,1731260888000,-2000.0,0.00039022,30]
[341862657,1731260888038,-2000.0,0.00039022,35]
[341862658,1731260888079,-196.0,0.00039022,30]
[341862659,1731260888121,-196.0,0.00039022,30]
[341862660,1731260888161,-200.0,0.00039022,30]
[341862661,1731260888201,-749358.68048685,0.00039022,120]
[341862662,1731260888239,-356.0,0.00039022,120]
[341862663,1731260888279,-1626.95338764,0.00039022,30]
[341862664,1731260888317,-182.665145,0.00039022,60]
[341862665,1731260888354,-336.0,0.00039022,120]
[341862666,1731260888391,-7884.85949455,0.00039022,120]
[341862667,1731260888440,-5753.21825656,0.00039022,30]
[341862668,1731260888479,-164.84492302,0.00039022,120]
[341862669,1731260888517,-174.12077045,0.00039022,120]
[341862670,1731260888553,-701.01246832,0.00039022,120]
[341862671,1731260888591,-4566.92880336,0.00039022,120]
[341862672,1731260888627,-4225.06291066,0.00039022,120]
[341862673,1731260888666,-548.7275335,0.00039022,120]
[341862674,1731260888703,-185.67041096,0.00039022,30]
[341862675,1731260888739,-249.79595567,0.00039022,60]
[341862676,1731260888774,-192.0,0.00039022,30]
[341862677,1731260888816,-4587.44195751,0.00039022,30]
[341862678,1731260888854,-13095.3211938,0.00039022,30]
[341862679,1731260888892,-1312.04826874,0.00039022,120]
[341862680,1731260888928,-1178.03769591,0.00039022,120]
[341862681,1731260888974,-50000.0,0.00039022,30]
[341862682,1731260889015,-50000.0,0.00039022,31]
[341862683,1731260889056,-50000.0,0.00039022,32]
[341862684,1731260889095,-50000.0,0.00039022,33]
[341862685,1731260889137,-50000.0,0.00039022,34]
[341862686,1731260889178,-50000.0,0.00039022,60]
[341862687,1731260889215,-50000.0,0.00039022,120]
[341862688,1731260889253,-59999.99999901,0.00039022,30]
[341862689,1731260889290,-2000.0,0.00039022,120]
[341862690,1731260889325,-297.91878182,0.00039022,30]
[341862691,1731260889364,-19017.88379702,0.00039022,31]
[341862692,1731260889400,-954.57620141,0.00039022,120]
[341862693,1731260889439,-152.19616997,0.00039022,120]
[341862694,1731260889475,-630.84452485,0.00039022,120]
[341862695,1731260889511,-3261.68955282,0.00039022,30]
[341862696,1731260889546,-640.31954886,0.00039022,120]
[341862697,1731260889584,-807.0,0.00039022,30]
[341862698,1731260889619,-2000.0,0.00039022,30]
[341862699,1731260889661,-1474.8,0.00039022,30]
[341862700,1731260889698,-301.67617898,0.00039022,120]
[341862701,1731260889734,-201.3,0.00039022,30]
[341862702,1731260889770,-200.0,0.00039022,30]
[341862703,1731260889806,-2000.0,0.00039022,120]
[341862704,1731260889843,-192.0,0.00039022,30]
[341862705,1731260889879,-4036.0,0.00039022,30]
[341862706,1731260889916,-1614.957,0.00039022,30]
[341862707,1731260889952,-5000.0,0.00039022,90]
[341862708,1731260889991,-1586.9196158,0.00039022,120]
[341862709,1731260890028,-1149.89046629,0.00039022,120]
[341862710,1731260890064,-10662.28185953,0.00039022,30]
[341862711,1731260890099,-650.51097057,0.00039022,120]
[341862712,1731260890135,-200.0,0.00039022,30]
[341862713,1731260890173,-201.3,0.00039022,30]
[341862714,1731260890209,-11934.0,0.00039022,99]
[341862715,1731260890246,-5100.0,0.00039022,33]
[341862716,1731260890280,-1000.0,0.00039022,30]
[341862717,1731260890314,-1000.0,0.00039022,30]
[341862718,1731260890348,-1000.0,0.00039022,30]
[341862719,1731260890381,-1000.0,0.00039022,30]
[341862720,1731260890416,-1000.0,0.00039022,30]
[341862721,1731260890712,-1000.0,0.00039022,30]
[341862722,1731260890747,-1000.0,0.00039022,30]
[341862723,1731260890781,-1000.0,0.00039022,30]
[341862724,1731260890813,-1000.0,0.00039022,30]
[341862725,1731260890846,-1000.0,0.00039022,30]
[341862726,1731260890879,-1000.0,0.00039022,30]
[341862727,1731260890911,-1000.0,0.00039022,30]
[341862728,1731260890948,-1000.0,0.00039022,30]
[341862729,1731260890982,-1000.0,0.00039022,30]
[341862730,1731260891016,-1000.0,0.00039022,30]
[341862731,1731260891054,-1000.0,0.00039022,30]
[341862732,1731260891086,-1000.0,0.00039022,30]
[341862733,1731260891121,-1000.0,0.00039022,30]
[341862734,1731260891156,-1000.0,0.00039022,30]
[341862735,1731260891192,-1000.0,0.00039022,30]
[341862736,1731260891225,-1000.0,0.00039022,30]
[341862737,1731260891259,-1000.0,0.00039022,30]
[341862738,1731260891290,-1000.0,0.00039022,30]
[341862739,1731260891323,-1000.0,0.00039022,30]
[341862740,1731260891354,-1000.0,0.00039022,30]
[341862741,1731260891387,-1063.691281,0.00039022,30]
[341862742,1731260891420,-499.372111,0.00039022,30]
[341862743,1731260891452,-2605.0,0.00039022,30]
[341862744,1731260891484,-6582.76623155,0.00039022,120]
[341862745,1731260891514,-4441.76497722,0.00039022,120]
[341862746,1731260891546,-1053.0,0.00039022,30]
[341862747,1731260891576,-157.987519,0.00039022,40]
[341862748,1731260891609,-1053.0,0.00039022,30]
[341862749,1731260891640,-250.0,0.00039022,30]
[341862750,1731260891674,-250.0,0.00039022,30]
[341862751,1731260891705,-250.0,0.00039022,30]
[341862752,1731260891737,-250.0,0.00039022,30]
[341862753,1731260891769,-250.0,0.00039022,30]
[341862754,1731260891800,-250.0,0.00039022,30]
[341862755,1731260891832,-250.0,0.00039022,30]
[341862756,1731260891862,-250.0,0.00039022,30]
[341862757,1731260891894,-250.0,0.00039022,30]
[341862758,1731260891925,-250.0,0.00039022,30]
[341862759,1731260891960,-1053.0,0.00039022,30]
[341862760,1731260891993,-250.0,0.00039022,30]
[341862761,1731260892026,-250.0,0.00039022,30]
[341862762,1731260892061,-1053.0,0.00039022,30]
[341862763,1731260892097,-1053.0,0.00039022,30]
[341862764,1731260892134,-1053.0,0.00039022,30]
[341862765,1731260892170,-1053.0,0.00039022,30]
[341862766,1731260892205,-1015.0,0.00039022,30]
[341862767,1731260892239,-1053.0,0.00039022,30]
[341862768,1731260892274,-158.0,0.00039022,30]
[341862769,1731260909215,679.96128058,0.00039022,30]
[341862770,1731260911725,230.43984,0.00039022,30]
[341862781,1731261014491,1554.64,0.00010684,2]
[341862793,1731261032345,-249.63,0.00012567,2]
[341862794,1731261032354,-250.0,0.00012592,2]
[341862795,1731261032364,-1000.0,0.00012594,2]
[341862796,1731261032373,-14543.165051,0.00012648,2]
[341862797,1731261032386,-6608.4777164,0.00012648,2]
[341862798,1731261032397,-250.0,0.00012805,2]
[341862799,1731261032407,-20115.21532187,0.00012882,2]
[341862800,1731261032416,-150.0,0.00012904,2]
[341862801,1731261032426,-1554.64,0.00012948,2]
[341862802,1731261032440,-314.63008405,0.00013495,2]
[341862803,1731261032450,-299.99,0.00013495,2]
[341862804,1731261032461,-432.99,0.000135,2]
[341862805,1731261032471,-150.0,0.000135,2]
[341862806,1731261032481,-150.0,0.000135,2]
[341862807,1731261032490,-314.63008402,0.00013506,2]
[341862808,1731261032500,-314.63008402,0.00013518,2]
[341862809,1731261032509,-314.63008402,0.00013529,2]
[341862810,1731261032518,-314.63008402,0.00013541,2]
[341862811,1731261032529,-314.63008402,0.00013552,2]
[341862812,1731261032538,-150.0,0.00013553,2]
[341862813,1731261032547,-3871.909,0.00013554,2]
[341862814,1731261032556,-174.468,0.00013554,2]
[341862815,1731261032565,-5531.7788768,0.00013559,2]
[341862816,1731261032575,-355.09983996,0.0001356,2]
[341862817,1731261032584,-17281.0,0.00013561,2]
[341862818,1731261032593,-5531.7788768,0.00013561,2]
[341862819,1731261032602,-5531.7788768,0.00013561,2]
[341862820,1731261032611,-314.63008402,0.00013564,2]
[341862821,1731261032620,-436.66212116,0.00013568,2]
[341862822,1731261032630,-2697.53270224,0.00013568,2]
[341862823,1731261032639,-500.0,0.00013571,2]
[341862824,1731261032648,-1474.9838,0.00013571,2]
[341862825,1731261032657,-6884.4546,0.00013571,2]
[341862826,1731261032667,-436.66212116,0.00013573,2]
[341862827,1731261032676,-2697.53270224,0.00013575,2]
[341862828,1731261032686,-314.63008402,0.00013575,2]
[341862829,1731261032696,-5531.7788768,0.00013578,2]
[341862830,1731261032705,-205827.52029947,0.0001358,2]
[341862831,1731261032717,-436.66212116,0.00013581,2]
[341862832,1731261032727,-355.09983996,0.00013582,2]
[341862833,1731261032736,-5531.7788768,0.00013582,2]
[341862834,1731261032746,-2697.53270224,0.00013582,2]
[341862835,1731261032756,-355.09983996,0.00013585,2]
[341862836,1731261032764,-314.63008402,0.00013587,2]
[341862837,1731261032774,-2697.53270224,0.00013589,2]
[341862838,1731261032784,-355.09983996,0.00013589,2]
[341862839,1731261032793,-2697.53270224,0.00013595,2]
[341862840,1731261032803,-2697.53270224,0.00013596,2]
[341862841,1731261032812,-5531.7788768,0.00013597,2]
[341862842,1731261032822,-355.09983996,0.00013597,2]
[341862843,1731261032831,-5000.0,0.00013598,2]
[341862844,1731261032840,-477.36910173,0.00013598,2]
[341862845,1731261032849,-182.90166614,0.00013598,2]
[341862846,1731261032858,-314.63008402,0.00013598,2]
[341862847,1731261032868,-1319.64988675,0.00013598,2]
[341862848,1731261032877,-168.67509401,0.00013598,2]
[341862849,1731261032886,-200.0,0.00013598,2]
[341862850,1731261032895,-500.0,0.00013673,2]
[341862851,1731261032904,-1254.0,0.00013684,2]
[341862852,1731261032914,-453.0,0.00013684,2]
[341862853,1731261032923,-559.0,0.00013684,2]
[341862854,1731261032932,-279.56,0.00013684,2]
[341862855,1731261032941,-1990.0,0.00013684,2]
[341862856,1731261032950,-1922.0,0.00013684,2]
[341862857,1731261032959,-1259.0,0.00013684,2]
[341862858,1731261032968,-921.0,0.00013684,2]
[341862859,1731261032978,-2910.0,0.00013684,2]
[341862860,1731261032987,-814.0,0.00013684,2]
[341862861,1731261032996,-3465.0,0.00013684,2]
[341862862,1731261033005,-11148.818,0.00013684,2]
[341862863,1731261033015,-150.0,0.00013684,2]
[341862864,1731261033024,-1159.0,0.00013684,2]
[341862865,1731261033036,-166.793,0.00013684,2]
[341862866,1731261033045,-5927.0,0.00013684,2]
[341862867,1731261033055,-279.756,0.00013684,2]
[341862868,1731261033064,-2247.0,0.0001369,2]
[341862869,1731261033074,-206.27288416,0.00013697,2]
[341862870,1731261033084,-500.0,0.00013697,2]
[341862871,1731261033093,-500.0,0.00013697,2]
[341862872,1731261033102,-500.0,0.00013697,2]
[341862873,1731261033112,-500.0,0.00013697,2]
[341862874,1731261033121,-500.0,0.00013697,2]
[341862875,1731261033130,-348.24000158,0.00013697,2]
[341862876,1731261033139,-500.0,0.00013697,2]
[341862877,1731261033148,-500.0,0.00013697,2]
[341862878,1731261033158,-500.0,0.00013697,2]
[341862879,1731261033168,-500.0,0.00013697,2]
[341862880,1731261033177,-200.0,0.00013697,2]
[341862881,1731261033187,-500.0,0.00013697,2]
[341862882,1731261033196,-779697.70150039,0.00013698,2]
[341862883,1731261033210,-371535.0948994,0.00013698,2]
[341862884,1731261033223,-565.69651933,0.00013698,2]
[341862885,1731261033258,-98787.29644925,0.00013698,2]
[341862886,1731261033267,-15853.74336113,0.00013698,2]
[341862887,1731261033277,-151.0,0.00013698,2]
[341862888,1731261033288,-151.0,0.00013698,2]
[341862889,1731261033298,-151.0,0.00013698,2]
[341862890,1731261033307,-151.0,0.00013698,2]
[341862891,1731261033316,-151.0,0.00013698,2]
[341862892,1731261033325,-156.116647,0.00013698,2]
[341862893,1731261033334,-154.997163,0.00013698,2]
[341862894,1731261033345,-151.0,0.00013698,2]
[341862895,1731261033354,-151.0,0.00013698,2]
[341862896,1731261033363,-151.0,0.00013698,2]